Cogmind - Beta 14 @@@ ROGUE MODE // 2024.08.17 @ 16:20:07 Player: satan5 Result: Destroyed by 2Q-6LN(R) with Subdweller Machine Gun Performance ------------- Evolutions (0) 0 Regions Visited (2) 400 Robots Destroyed (37) 185 Value Destroyed (939) 939 Prototype IDs (15) 300 Alien Tech Used (0) 0 Bonus (0) 0 TOTAL SCORE: 1824 Bonus ------- None Cogmind --------- Core Integrity 0/250 Matter 292/300 Energy 244/265 System Corruption 0% Temperature Cool (0) Movement Walking (190) Ox1 Location -10/Subcaves Parts ------- > --- POWER (1) -------- Improved Ion Engine > --- PROPULSION (2) --- Aluminum Leg > --- UTILITY (2) ------ (None) > --- WEAPON (2) ------- Subdweller Beam Cannon Subdweller Machine Gun > --- INVENTORY (5) ---- Subdweller Power Source Subdweller Optics Subdweller Laser Subdweller Beam Cannon Subdweller Shrapnel Launcher Peak State ------------ > --- POWER ------------ Improved Ion Engine Improved Ion Engine > --- PROPULSION ------- Aluminum Leg Aluminum Leg Improved Aluminum Leg Improved Aluminum Leg > --- UTILITY ---------- Large Storage Unit Tower Shield > --- WEAPON ----------- Subdweller Beam Cannon Subdweller Machine Gun Subdweller Machine Gun Subdweller Machine Gun > --- INVENTORY -------- Subdweller Power Source Makeshift Power Source Improved Aluminum Leg Improved Aluminum Leg Subdweller Optics Improved Terrain Scanner Hacking Suite Riot Gun Subdweller Laser Subdweller Laser Subdweller Laser Autogun Autogun Mining Claw Piercing Trap [Rating: 42] Favorites ----------- Power Improved Ion Engine Engine Improved Ion Engine Propulsion Aluminum Leg Leg Aluminum Leg Utility Large Storage Unit Device Seismic Detector Storage Large Storage Unit Protection Tower Shield Weapon Subdweller Machine Gun Energy Gun Medium Laser Energy Cannon Subdweller Beam Cannon Ballistic Gun Subdweller Machine Gun Slashing Weapon Mining Claw Build | -11 -10 -10 ------- Run | Yrd Mat Sub Slots Evolved . | . . . Power . | . . . Propulsion . | . . . Utility . | . . . Weapon . | . . . Parts Attached 31 | 7 9 15 Power 4 | 1 1 2 Engine 4 | 1 1 2 Core . | . . . Reactor . | . . . Propulsion 8 | 2 2 4 Treads . | . . . Leg 8 | 2 2 4 Wheel . | . . . Hover . | . . . Flight . | . . . Utility 7 | 1 2 4 Device 3 | . 1 2 Storage 3 | 1 1 1 Processor . | . . . Hackware . | . . . Protection 1 | . . 1 Artifact . | . . . Weapon 12 | 3 4 5 Energy Gun 2 | 1 1 . Energy Cannon 1 | . . 1 Ballistic Gun 8 | 2 2 4 Ballistic Cannon . | . . . Launcher . | . . . Special Weapon . | . . . Impact Weapon . | . . . Slashing Weapon 1 | . 1 . Piercing Weapon . | . . . Special Melee Weapon . | . . . Unidentified Prototypes . | . . . Parts Lost 4 | . 1 3 Power . | . . . Propulsion 1 | . . 1 Utility 2 | . . 2 Weapon 1 | . 1 . Highest Loss Streak 2 | . 1 2 To Critical Strikes . | . . . Average Slot Usage (%) 94 | . 98 91 Engine 13 | . 14 13 Leg 27 | . 28 27 Device 8 | . 12 6 Storage 12 | . 14 10 Protection 1 | . . 2 Energy Cannon 3 | . . 4 Ballistic Gun 24 | . 26 22 Peak Build Rating 42 | 6 12 42 Average Rating 18 | 4 10 24 On Entrance 5 | . 6 11 Naked Turns . | . . . Heaviest Build 92 | 11 34 92 Greatest Support 46 | 20 20 46 Greatest Overweight (x) 2 | . 1 2 Average Overweight (x) . | . . 1 Largest Inventory Capacity 15 | 8 15 15 Average Capacity 14 | 6 13 14 Most Carried 15 | 5 15 15 Average Carried 13 | 2 12 14 Final Capacity 15 | 8 15 5 Final Carried 15 | 4 15 5 Class Distribution -------------------- 59% | Mutant 19% | Scavenger-Mutant 10% | Scavenger-Gunner 9% | Gunner Dominant Class ---------------- Mutant | -10/Materials Scavenger-Mutant | -10/Subcaves Resources | -11 -10 -10 ----------- Run | Yrd Mat Sub Matter Collected 1191 | 245 406 540 Remotely . | . . . Salvage Created 1427 | 111 602 714 Parts 102 | 7 50 45 Haulers Intercepted 2 | . 2 . Recyclers Shooed . | . . . Parts Field Recycled . | . . . Retrieved Matter . | . . . Parts Self-Destructed 14 | . . 14 Prevented . | . . . Kills | -11 -10 -10 ------- Run | Yrd Mat Sub Combat Hostiles Destroyed 27 | . 13 14 Guns 18 | . 13 5 Cannons 9 | . . 9 Classes Destroyed 9 | 2 6 1 Worker 1 | . 1 . Tunneler 1 | 1 . . Hauler 2 | . 2 . Recycler 1 | 1 . . Operator 2 | . 2 . Watcher 3 | . 3 . Swarmer 7 | . 6 1 Grunt 7 | . 7 . Subdweller 13 | . . 13 Best Kill Streak 4 | 2 4 2 Combat Bots Only 3 | . 3 2 Max Kills in Single Turn 1 | 1 1 1 Gunslinging . | . . . Exploded . | . . . Melee . | . . . Uniques/NPCs Destroyed . | . . . Combat | -11 -10 -10 -------- Run | Yrd Mat Sub Hostile Shots Fired 123 | . 60 63 Missed 30 | . 14 16 Damage Taken 1472 | . 519 953 Core 251 | . 87 164 Absorbed by Shields . | . . . Core Remaining (%) 100 | 100 . . Volleys Fired 173 | 5 75 93 Largest 4 | 2 2 4 Hottest 170 | 40 70 170 Shots Fired 351 | 10 149 192 Gun 289 | 10 149 130 Cannon 62 | . . 62 Launcher . | . . . Special . | . . . Kinetic 273 | 10 133 130 Thermal 78 | . 16 62 Explosive . | . . . Electromagnetic . | . . . Robot Hit Streak 16 | 4 11 16 Robot Miss Streak 4 | 1 4 3 Penetration Max . | . . . Secondary Targets 3 | . 3 . Max Gunslinging Chain 1 | . 1 . Shots Hit Robots 182 | 7 84 91 Core Hits 65 | 3 36 26 Critical Kills . | . . . Critical Parts Destroyed . | . . . Critical Strikes 2 | . 1 1 Burn 1 | . 1 . Destroy 1 | . . 1 Melee Attacks 1 | . 1 . Impact . | . . . Slashing 1 | . 1 . Piercing . | . . . Sneak Attacks . | . . . Combat Hostiles . | . . . Follow-up Attacks . | . . . Damage Inflicted 2787 | 88 995 1704 Guns 2012 | 88 995 929 Cannons 775 | . . 775 Explosions . | . . . Melee . | . . . Ramming . | . . . Kinetic 1937 | 88 920 929 Thermal 850 | . 75 775 Explosive . | . . . Electromagnetic . | . . . Impact . | . . . Slashing . | . . . Piercing . | . . . Highest Corruption . | . . . Average Corruption . | . . . Corruption Purged . | . . . Corruption Blocked . | . . . Overload Shots . | . . . Overflow Damage . | . . . Projectiles . | . . . Explosions . | . . . Melee . | . . . Knockbacks . | . . . Impact . | . . . Kinetic . | . . . Secondary . | . . . Self-Inflicted Damage . | . . . Shots . | . . . Rammed . | . . . Targets Rammed . | . . . Kicked . | . . . Crushed . | . . . Highest Temperature 174 | . 140 174 Average Temperature 42 | . 27 52 Received Heat Transfer 288 | . 174 114 Siege Activations . | . . . Robots Corrupted . | . . . Combat Hostiles . | . . . Parts Fried . | . . . Impact Corruptions . | . . . Robots Melted . | . . . Combat Hostiles . | . . . Parts Melted 1 | . . 1 Heat Transferred 1332 | . 296 1036 Parts Sabotaged . | . . . Parts Stolen . | . . . Parts Stripped . | . . . Power Chain Reactions . | . . . Alert | -11 -10 -10 ------- Run | Yrd Mat Sub Peak Influence 271 | 10 271 . Initial 6 | . 6 . Average 73 | 3 75 . Maximum Alert Level 1 | . 1 . Low Security (%) 87 | 100 87 . Level 1 12 | . 12 . Level 2 . | . . . Level 3 . | . . . Level 4 . | . . . Level 5 . | . . . High Security . | . . . Max Security . | . . . Squads Dispatched 2 | . 2 . Investigation . | . . . Extermination . | . . . Reinforcement 2 | . 2 . Assault . | . . . Garrison . | . . . Intercept . | . . . Searches Triggered . | . . . Construction Impeded . | . . . Haulers Reinforced . | . . . Active Scanning Responses . | . . . Cargo Convoy Interrupts . | . . . Stealth | -11 -10 -10 --------- Run | Yrd Mat Sub Distress Signals 3 | . 3 . Communications Jammed . | . . . Distress Signals . | . . . Times Spotted 42 | . 28 14 Peak Tracking Total 4 | . 4 2 Tactical Retreats 1 | . 1 . Traps | -11 -10 -10 ------- Run | Yrd Mat Sub Traps Triggered 1 | . 1 . Indirectly . | . . . Trap Hack Attempts . | . . . Triggered . | . . . Disarmed . | . . . Reprogrammed . | . . . Reused . | . . . Traps Extracted . | . . . Installed . | . . . Triggered 1 | . . 1 Most Traps Carried 1 | . . 1 Machines | -11 -10 -10 ---------- Run | Yrd Mat Sub Machines Disabled 1 | . . 1 Max in Single Turn 1 | . . 1 Machines Repaired . | . . . Machines Dismantled . | . . . Machines Sabotaged . | . . . Overloaded Fab Kills . | . . . Hacking | -11 -10 -10 --------- Run | Yrd Mat Sub Machines Accessed 7 | . 6 1 Terminals 5 | . 5 . Fabricators . | . . . Repair Stations . | . . . Recycling Units 1 | . 1 . Scanalyzers . | . . . Garrison Access . | . . . Total Hacks 32 | . 23 9 Successful 22 | . 13 9 Failed 10 | . 10 . Catastrophic 1 | . 1 . Database Lockouts . | . . . Manual 16 | . 16 . Terminals 20 | . 20 . Fabricators . | . . . Repair Stations . | . . . Recycling Units 3 | . 3 . Scanalyzers . | . . . Garrison Access . | . . . Terminal Hacks 15 | . 6 9 Record 8 | . . 8 Prototype ID Bank 2 | . 2 . Branch Access Points 1 | . 1 . Unreport Threat 1 | . 1 . Zone Layout 2 | . 2 . Derelict Proto ID Bank 1 | . . 1 Fabricator Hacks . | . . . Repair Station Hacks . | . . . Recycling Unit Hacks 1 | . 1 . Retrieve Components 1 | . 1 . Scanalyzer . | . . . Garrison Access Hacks . | . . . Unauthorized Hacks 6 | . 6 . Terminals 4 | . 4 . Botnet 4 | . 4 . Fabricators . | . . . Repair Stations . | . . . Recycling Units 2 | . 2 . Reject 1 | . 1 . Mask 1 | . 1 . Scanalyzers . | . . . Garrison Access . | . . . Data Cores Recovered . | . . . Used . | . . . Hacking Detections 5 | . 5 . Full Trace Events . | . . . Feedback Events . | . . . Feedback Blocked . | . . . Robot Schematics Acquired . | . . . Robots Built . | . . . Authchips . | . . . Time . | . . . Total Robot Build Rating . | . . . Part Schematics Acquired . | . . . Parts Built . | . . . Authchips . | . . . Time . | . . . Total Part Build Rating . | . . . Parts Repaired . | . . . Time . | . . . Parts Recycled . | . . . Recycled Matter . | . . . Retrieved Matter . | . . . Retrieved Components 9 | . 9 . Parts Scanalyzed . | . . . Part Schematics Acquired . | . . . Parts Damaged . | . . . Bothacking | -11 -10 -10 ------------ Run | Yrd Mat Sub Used RIF Installer . | . . . Robots Hacked . | . . . Non-combat . | . . . Combat . | . . . Robot Hacks Applied . | . . . Relay Couplers Released . | . . . Fabnet Peak Effective % . | . . . Robots Rewired . | . . . Allies Hacked . | . . . Hacks Repelled . | . . . Allies | -11 -10 -10 -------- Run | Yrd Mat Sub Total Allies . | . . . Largest Group . | . . . Highest-Rated Group . | . . . Highest-Rated Ally . | . . . Total Orders . | . . . Ally Attacks . | . . . Total Damage . | . . . Kills . | . . . Allies Corrupted . | . . . Allies Melted . | . . . Intel | -11 -10 -10 ------- Run | Yrd Mat Sub Robot Analysis Total . | . . . Derelict Logs Recovered . | . . . Drone Launches . | . . . Drone Recoveries . | . . . Exploration | -11 -10 -10 ------------- Run | Yrd Mat Sub Turns Passed 4004 | 59 1563 2382 Spaces Moved 1794 | 34 738 1022 Core 16 | 16 . . Treads . | . . . Legs 1778 | 18 738 1022 Wheels . | . . . Hover . | . . . Flight . | . . . Fastest Speed 50 | 50 120 120 Average Speed 186 | 87 175 197 Slowest Speed 260 | 120 190 260 Overloaded Moves . | . . . Propulsion Burnouts . | . . . Robots Hopped . | . . . Cave-ins Triggered . | . . . Exploration Rate (%) 54 | 4 90 69 Regions Visited 2 Branch Regions 1 Pre-discovered Areas . | . . . Known Exits Taken . | . . . Unknown Exits Taken 2 | 1 1 . Scrap Searched 12 | . . 12 Spaces Dug 2 | . 1 1 Terrain Destroyed 8 | . 1 7 Melee 1 | . 1 . Projectile 7 | . . 7 AOE . | . . . Terrain Rammed . | . . . Walls Destroyed . | . . . Machines Disabled . | . . . Actions | -11 -10 -10 --------- Run | Yrd Mat Sub Total 2162 | 52 876 1234 Wait 81 | . 22 59 Move 1792 | 33 737 1022 Hop . | . . . Pick Up 57 | 7 22 28 Fast Attach 7 | 3 . 4 Attach 11 | 3 4 4 Detach . | . . . Swap 13 | 1 5 7 Drop 27 | . 10 17 Fire 173 | 5 75 93 Melee 1 | . 1 . Ram . | . . . Kick . | . . . Crush . | . . . Escape Stasis . | . . . Rewire . | . . . Trap . | . . . Miscellaneous . | . . . Route ------- -11/Scrapyard -10/Materials (discovered 5 exits: [*Mat x3] / *Min / *Sub) -10/Subcaves (discovered 2 exits: [*Mat x2]) History --------- Turn | Location | Event 17 | -11/Scrapyard | Discovered new exit (range 14) 60 | -11/Scrapyard | Entered Materials 170 | -10/Materials | Discovered new exit (range 5) 206 | -10/Materials | Discovered new exit (range 16) 280 | -10/Materials | Identified exit to Mines 291 | -10/Materials | Discovered new exit (range 10) 315 | -10/Materials | Build established: Mutant 656 | -10/Materials | Discovered new exit (range 4) 1608 | -10/Materials | Discovered new exit (range 9) 1623 | -10/Materials | Entered Subcaves 1941 | -10/Subcaves | Shifting Twisted Machinery released Piercing Trap 2206 | -10/Subcaves | Core integrity fell below 50% 2455 | -10/Subcaves | Discovered new exit (range 8) 2456 | -10/Subcaves | Shifting Twisted Machinery released Mak. Light Armor Plating 2519 | -10/Subcaves | Build established: Scavenger-Mutant 2630 | -10/Subcaves | A swath of the cavern ceiling suddenly collapsed 2972 | -10/Subcaves | Visited 4L-MR0's lab 3000 | -10/Subcaves | Found Tower Shield 3002 | -10/Subcaves | Attached Tower Shield, gained temporary slots: Power, Propulsion x2, Utility x2, Weapon x2 3219 | -10/Subcaves | Disturbed a concealed Subdweller 3293 | -10/Subcaves | Build established: Scavenger-Gunner 3325 | -10/Subcaves | Discovered new exit (range 10) 3699 | -10/Subcaves | Disturbed a concealed Subdweller 3748 | -10/Subcaves | Build established: Gunner 3997 | -10/Subcaves | Core integrity fell below 20% 4005 | -10/Subcaves | Destroyed by 2Q-6LN(R) with Subdweller Machine Gun Last Messages --------------- 03727_ Dropped Sub. Laser. 03727_ Acquired Sub. Beam Cannon. 03772_ AT-6J5(R) destroyed. 03778_ TG-J5J(R) affixes Scrap Shield Fragment to Scrap Shield. 03782_ TG-J5J(R) destroyed. 03789_ Acquired 16 matter. 03815_ Sub. Machine Gun shoots sparks and powers down. 03868_ BC-ZLS(R) destroyed. 03880_ BV-J3A(R) affixes Scrap Shield Fragment to Scrap Shield. 03883_ BV-J3A(R) destroyed. 03894_ Acquired 22 matter. 03990_ Tower Shield destroyed. 03991_ Temporary Power slot lost. 03991_ Temporary Propulsion slot lost. 03991_ Temporary Utility slot lost. 03991_ Temporary Weapon slot lost. 03994_ Aluminum Leg destroyed. Map ----- +----------------------------------------------------+ | ?????????????????????????????????????????????????? | | ?????????????????????????????????????????????????? | | ?????????????????????????????????????????????????? | | ?????????????????????????????????????????????????? | | ?????????????????????????????????????????????????? | | ###?????????????#????????????????????????????????? | | #????????####? ????????????????????????????????? | | ##???????? # ????????????????????????????????? | | ##?????????? ????????????????????????????????? | | #??????????? ????????????????????????????????? | | #??????????? ####????????????????????????????? | | #???????????? ?????????????????????????????? | | ??????#?????? ?????????????????????????????? | | ????? ??????? ?????????????????????????????? | | ???? ?????? #?????????????????????????????? | | ??? ?????? ##????????????????????????????? | | ?? ##?? # ?????????????????????????????? | | # ##? # ##????????????????????????????? | | #?# ## ## #????????????????????????????? | | #??# ## #????????????????????????????? | | #??# ## #???????????#????????????????? | | ??????# # ###????????? #????????????????? | | #????## ## ##???##?## #?##?????????????? | | #??### ####/#? "? #?????????????? | | #?## [[=*### ## #??????????????? | | ### ![!@=]< <# #???????????????? | | ## ####### =!*[[R ##### ???????? | | ##?????# #### ???????? | | ##*!! #??????#####?## ???????? | | ###%[&#???????????## # ???????? | | ####%&##?????????## ## ##?# ?????????? | | ## ! #?????????# #?##???? ##??????????? | | ### ##?????????# ###??????????????????? | | #?## #????????## ##?????????????????? | | # #?# ###??????# #?????????????????? | | ## #?##" ########## ### #?????????????????? | | ### ###" ### ##?? #?????????????????? | | ##?####"" ### #???# ##?????????????????? | | ##???##" # # ## ##??###??????????????????? | | #???# ## ### # &#### #??????????????????? | | #?####" # ##?# %%## #??????????????????? | | ##### ## ######## ""&&! ##?????????????????? | | #??#" ## " #?????##### #?????????????????? | | ???#" " #?????????# #?????????????????? | | ???### "#####?????????########?????????????????? | | ?????######??????????????????????????????????????? | | ?????????????????????????????????????????????????? | | ?????????????????????????????????????????????????? | | ?????????????????????????????????????????????????? | | ?????????????????????????????????????????????????? | +----------------------------------------------------+ Best States ------------- Heat Dissipation 25 Energy Generation 19 Energy Capacity 430 Matter Stores 300 Matter Capacity 300 Sight Range 21 Terrain Scan Range 16 Terrain Scan Density 10 Armor Coverage 2000 Evasion (%) 55 Item Schematics ----------------- None Robot Schematics ------------------ None Fabricated ------------ Nothing Alien Tech Used ----------------- None Achievements -------------- None Challenges ------------ None Game ------ Seed BombDimensionalChip Manual? 0 Play Time 00:20:43 Cumulative 230.0 hours Start 2024.08.17 @ 15:56:02 End 2024.08.17 @ 16:20:07 Sessions 1 Manual Loads 0 Difficulty Rogue Special Mode None Game No. 95 Rogue 81 Adventurer 14 Explorer 0 Win Type - Total 16 Types 13/0/1/1/0/0/0/0/1 Lore% 46 Gallery% 74 Achievement% 66 Wizard Run 0 Options --------- Layout 1 ASCII 0 Keyboard 0 Movement Mouse Keybinds 0 Fullscreen 1 Font 20/SmallcapsGlow Map View 50x35 Zoom Use 0% Tactical HUD 1 Map Filters NONE Filters NONE Steam 1 RUN: 0e7a356a-d2ca-4ad0-8fc4-75e8a02ed7ee